[Event "Titled Tuesday Blitz July 18 Late 2023"]
[White "Shuvalova, Polina"]
[Black "Yordanov, Nikolay Plamenov"]
[WhiteFideId "24171760"]
[BlackFideId "2907445"]
[WhiteElo "2681"]
[BlackElo "2400"]
[Result "1-0"]
[Round "1"]
[TimeControl "180+2"]
[Date "2023.07.18"]
[WhiteClock "0:00:14"]
[BlackClock "0:00:16"]
[Board "82"]

1. f4 {[%clk 0:02:59]}  Nf6 {[%clk 0:02:58]} 2. Nf3 {[%clk 0:02:58]}  d5 {[%clk 0:02:58]} 3. g3 {[%clk 0:02:58]}  c5 {[%clk 0:02:59]} 4. Bg2 {[%clk 0:02:58]}  Nc6 {[%clk 0:02:59]} 5. O-O {[%clk 0:02:59]}  e6 {[%clk 0:02:58]} 6. d3 {[%clk 0:02:58]}  Be7 {[%clk 0:02:59]} 7. Nbd2 {[%clk 0:02:58]}  O-O {[%clk 0:02:58]} 8. e4 {[%clk 0:02:56]}  dxe4 {[%clk 0:02:58]} 9. dxe4 {[%clk 0:02:56]}  b6 {[%clk 0:02:58]} 10. Qe2 {[%clk 0:02:52]}  Bb7 {[%clk 0:02:56]} 11. c3 {[%clk 0:02:49]}  Qc7 {[%clk 0:02:54]} 12. e5 {[%clk 0:02:40]}  Nd5 {[%clk 0:02:50]} 13. Ne4 {[%clk 0:02:39]}  Rad8 {[%clk 0:02:49]} 14. Bd2 {[%clk 0:02:38]}  Qc8 {[%clk 0:02:49]} 15. Rad1 {[%clk 0:02:31]}  Ba6 {[%clk 0:02:45]} 16. c4 {[%clk 0:02:31]}  Ndb4 {[%clk 0:02:45]} 17. Bxb4 {[%clk 0:02:20]}  Nxb4 {[%clk 0:02:40]} 18. b3 {[%clk 0:02:20]}  Bb7 {[%clk 0:02:34]} 19. Nd6 {[%clk 0:02:16]}  Bxd6 {[%clk 0:02:13]} 20. exd6 {[%clk 0:02:15]}  Qc6 {[%clk 0:01:59]} 21. a3 {[%clk 0:02:09]}  Na6 {[%clk 0:01:56]} 22. Nh4 {[%clk 0:01:43]}  Qc8 {[%clk 0:01:52]} 23. Rd3 {[%clk 0:01:41]}  Bxg2 {[%clk 0:01:49]} 24. Qxg2 {[%clk 0:01:38]}  Nb8 {[%clk 0:01:46]} 25. f5 {[%clk 0:01:33]}  exf5 {[%clk 0:01:10]} 26. Nxf5 {[%clk 0:01:32]}  Qe6 {[%clk 0:01:03]} 27. Qf3 {[%clk 0:01:23]}  Kh8 {[%clk 0:00:55]} 28. Re3 {[%clk 0:01:09]}  Qf6 {[%clk 0:00:51]} 29. Rd1 {[%clk 0:01:05]}  g6 {[%clk 0:00:45]} 30. Ne7 {[%clk 0:00:55]}  Qxf3 {[%clk 0:00:44]} 31. Rxf3 {[%clk 0:00:54]}  Kg7 {[%clk 0:00:42]} 32. b4 {[%clk 0:00:50]}  Rd7 {[%clk 0:00:40]} 33. bxc5 {[%clk 0:00:47]}  bxc5 {[%clk 0:00:41]} 34. Rd5 {[%clk 0:00:39]}  Rfd8 {[%clk 0:00:38]} 35. Rb3 {[%clk 0:00:39]}  Na6 {[%clk 0:00:37]} 36. Nc6 {[%clk 0:00:39]}  Re8 {[%clk 0:00:30]} 37. Ne5 {[%clk 0:00:39]}  Rdd8 {[%clk 0:00:28]} 38. Rb7 {[%clk 0:00:37]}  Rf8 {[%clk 0:00:25]} 39. Nc6 {[%clk 0:00:34]}  Rc8 {[%clk 0:00:23]} 40. Nxa7 {[%clk 0:00:31]}  Rce8 {[%clk 0:00:22]} 41. d7 {[%clk 0:00:31]}  Re2 {[%clk 0:00:22]} 42. d8=Q {[%clk 0:00:28]}  Rxd8 {[%clk 0:00:21]} 43. Rxd8 {[%clk 0:00:29]}  h5 {[%clk 0:00:19]} 44. Rdd7 {[%clk 0:00:29]}  Kf6 {[%clk 0:00:19]} 45. Rxf7+ {[%clk 0:00:28]}  Kg5 {[%clk 0:00:20]} 46. Rf4 {[%clk 0:00:27]}  Nb8 {[%clk 0:00:19]} 47. h4+ {[%clk 0:00:27]}  Kh6 {[%clk 0:00:19]} 48. Rxb8 {[%clk 0:00:27]}  g5 {[%clk 0:00:19]} 49. Rb6+ {[%clk 0:00:26]}  Kg7 {[%clk 0:00:18]} 50. hxg5 {[%clk 0:00:27]}  h4 {[%clk 0:00:19]} 51. gxh4 {[%clk 0:00:26]}  Re7 {[%clk 0:00:19]} 52. Nb5 {[%clk 0:00:25]}  Kh7 {[%clk 0:00:19]} 53. Rbf6 {[%clk 0:00:23]}  Re1+ {[%clk 0:00:18]} 54. Kf2 {[%clk 0:00:23]}  Re8 {[%clk 0:00:19]} 55. h5 {[%clk 0:00:22]}  Kg8 {[%clk 0:00:19]} 56. g6 {[%clk 0:00:22]}  Kg7 {[%clk 0:00:19]} 57. Rf7+ {[%clk 0:00:21]}  Kh6 {[%clk 0:00:20]} 58. Rh7+ {[%clk 0:00:18]}  Kg5 {[%clk 0:00:20]} 59. Rff7 {[%clk 0:00:17]}  Re4 {[%clk 0:00:19]} 60. Re7 {[%clk 0:00:15]}  Rxc4 {[%clk 0:00:19]} 61. Nd6 {[%clk 0:00:15]}  Rc2+ {[%clk 0:00:18]} 62. Kf3 {[%clk 0:00:15]}  Rc3+ {[%clk 0:00:18]} 63. Re3 {[%clk 0:00:15]}  Rc1 {[%clk 0:00:18]} 64. Ne4+ {[%clk 0:00:15]}  Kh4 {[%clk 0:00:18]} 65. g7 {[%clk 0:00:15]}  Rf1+ {[%clk 0:00:17]} 66. Ke2 {[%clk 0:00:15]}  Rf2+ {[%clk 0:00:15]} 67. Kxf2 {[%clk 0:00:14]}  Kg4 {[%clk 0:00:16]} 68. g8=Q+ {[%clk 0:00:14]}  Kf4 {[%clk 0:00:16]} 69. Qg5# {[%clk 0:00:14]} 1-0


[Site "https://www.chess.com"]

[Event "Titled Tuesday Blitz July 18 Late 2023"]
[White "Omelja, Artem"]
[Black "Garcia Cuenca, Victor"]
[WhiteFideId "14119846"]
[BlackFideId "2250829"]
[WhiteElo "2669"]
[BlackElo "2385"]
[Result "0-1"]
[Round "1"]
[TimeControl "180+2"]
[Date "2023.07.18"]
[WhiteClock "0:00:02"]
[BlackClock "0:00:10"]
[Board "88"]

1. e4 {[%clk 0:03:00]}  e6 {[%clk 0:02:57]} 2. d3 {[%clk 0:02:58]}  d5 {[%clk 0:02:58]} 3. Nd2 {[%clk 0:01:48]}  Nc6 {[%clk 0:02:56]} 4. Ngf3 {[%clk 0:01:47]}  Bc5 {[%clk 0:02:47]} 5. c3 {[%clk 0:01:43]}  dxe4 {[%clk 0:02:46]} 6. dxe4 {[%clk 0:01:44]}  e5 {[%clk 0:02:44]} 7. b4 {[%clk 0:01:39]}  Bd6 {[%clk 0:02:25]} 8. Bb5 {[%clk 0:01:34]}  Nf6 {[%clk 0:02:24]} 9. O-O {[%clk 0:01:34]}  O-O {[%clk 0:02:24]} 10. h3 {[%clk 0:01:31]}  Ne7 {[%clk 0:02:15]} 11. Qc2 {[%clk 0:01:25]}  a6 {[%clk 0:02:05]} 12. Ba4 {[%clk 0:01:23]}  b5 {[%clk 0:02:05]} 13. Bb3 {[%clk 0:01:23]}  Ng6 {[%clk 0:01:53]} 14. Re1 {[%clk 0:01:09]}  Qe7 {[%clk 0:01:45]} 15. a3 {[%clk 0:01:05]}  c5 {[%clk 0:01:35]} 16. bxc5 {[%clk 0:00:44]}  Bxc5 {[%clk 0:01:36]} 17. Nf1 {[%clk 0:00:44]}  Bb7 {[%clk 0:01:33]} 18. Ng3 {[%clk 0:00:43]}  Rac8 {[%clk 0:01:25]} 19. a4 {[%clk 0:00:38]}  b4 {[%clk 0:01:16]} 20. c4 {[%clk 0:00:32]}  Qc7 {[%clk 0:01:00]} 21. a5 {[%clk 0:00:31]}  Rfd8 {[%clk 0:00:59]} 22. Bg5 {[%clk 0:00:29]}  Qc6 {[%clk 0:00:47]} 23. Ba4 {[%clk 0:00:24]}  Qe6 {[%clk 0:00:47]} 24. Rad1 {[%clk 0:00:16]}  h6 {[%clk 0:00:47]} 25. Bxf6 {[%clk 0:00:12]}  Qxf6 {[%clk 0:00:47]} 26. Rxd8+ {[%clk 0:00:09]}  Rxd8 {[%clk 0:00:48]} 27. Rd1 {[%clk 0:00:09]}  Rxd1+ {[%clk 0:00:41]} 28. Qxd1 {[%clk 0:00:10]}  Nf4 {[%clk 0:00:41]} 29. Nf5 {[%clk 0:00:07]}  Bxe4 {[%clk 0:00:36]} 30. Ne3 {[%clk 0:00:07]}  Nxh3+ {[%clk 0:00:26]} 31. Kf1 {[%clk 0:00:08]}  Ng5 {[%clk 0:00:24]} 32. Nxg5 {[%clk 0:00:05]}  hxg5 {[%clk 0:00:22]} 33. Qe2 {[%clk 0:00:04]}  Qg6 {[%clk 0:00:19]} 34. Bc2 {[%clk 0:00:04]}  Bxe3 {[%clk 0:00:17]} 35. Bxe4 {[%clk 0:00:03]}  Qxe4 {[%clk 0:00:17]} 36. fxe3 {[%clk 0:00:04]}  b3 {[%clk 0:00:16]} 37. Qd2 {[%clk 0:00:02]}  Qc2 {[%clk 0:00:14]} 38. Qd7 {[%clk 0:00:02]}  b2 {[%clk 0:00:10]} 39. Qc8+ {[%clk 0:00:03]}  Kh7 {[%clk 0:00:09]} 40. Qh3+ {[%clk 0:00:02]}  Kg6 {[%clk 0:00:10]} 0-1


[Site "https://www.chess.com"]

[Event "Titled Tuesday Blitz July 18 Late 2023"]
[White "Bueno, Alfeu Junior Varela"]
[Black "Lewicki, Miroslaw"]
[WhiteFideId "2108879"]
[BlackFideId "1113380"]
[WhiteElo "2385"]
[BlackElo "2666"]
[Result "1-0"]
[Round "1"]
[TimeControl "180+2"]
[Date "2023.07.18"]
[WhiteClock "0:00:39"]
[BlackClock "0:00:00"]
[Board "89"]

1. e4 {[%clk 0:02:51]}  b5 {[%clk 0:02:59]} 2. Bxb5 {[%clk 0:02:50]}  Bb7 {[%clk 0:02:51]} 3. Nc3 {[%clk 0:02:49]}  a6 {[%clk 0:02:50]} 4. Bc4 {[%clk 0:02:49]}  e6 {[%clk 0:02:50]} 5. Nf3 {[%clk 0:02:48]}  Nf6 {[%clk 0:02:50]} 6. Qe2 {[%clk 0:02:46]}  Be7 {[%clk 0:02:49]} 7. d4 {[%clk 0:02:45]}  d5 {[%clk 0:02:48]} 8. Bd3 {[%clk 0:02:30]}  dxe4 {[%clk 0:02:44]} 9. Nxe4 {[%clk 0:02:31]}  O-O {[%clk 0:02:42]} 10. O-O {[%clk 0:02:29]}  Nc6 {[%clk 0:02:42]} 11. c3 {[%clk 0:02:29]}  Nd5 {[%clk 0:02:36]} 12. Bg5 {[%clk 0:02:25]}  f6 {[%clk 0:02:31]} 13. Bd2 {[%clk 0:02:24]}  Qd7 {[%clk 0:02:31]} 14. Rae1 {[%clk 0:02:23]}  Rae8 {[%clk 0:02:09]} 15. Bxa6 {[%clk 0:02:22]}  Bxa6 {[%clk 0:02:09]} 16. Qxa6 {[%clk 0:02:22]}  Ra8 {[%clk 0:02:10]} 17. Qc4 {[%clk 0:02:22]}  Na5 {[%clk 0:02:08]} 18. Qd3 {[%clk 0:02:20]}  Qa4 {[%clk 0:02:03]} 19. a3 {[%clk 0:02:07]}  Nb3 {[%clk 0:01:41]} 20. c4 {[%clk 0:02:01]}  Nb6 {[%clk 0:01:40]} 21. c5 {[%clk 0:01:19]}  Nd5 {[%clk 0:01:35]} 22. Nc3 {[%clk 0:01:19]}  Nxc3 {[%clk 0:01:15]} 23. Bxc3 {[%clk 0:01:18]}  Qd7 {[%clk 0:01:15]} 24. Qc4 {[%clk 0:01:15]}  Rfb8 {[%clk 0:01:15]} 25. Rxe6 {[%clk 0:01:10]}  Kf8 {[%clk 0:01:15]} 26. Rfe1 {[%clk 0:01:07]}  Bd8 {[%clk 0:00:47]} 27. c6 {[%clk 0:01:02]}  Qf7 {[%clk 0:00:37]} 28. Bb4+ {[%clk 0:01:00]}  Be7 {[%clk 0:00:25]} 29. Bxe7+ {[%clk 0:00:41]}  Kg8 {[%clk 0:00:25]} 30. Bb4 {[%clk 0:00:40]}  Na5 {[%clk 0:00:00]} 31. Bxa5 {[%clk 0:00:39]} 1-0


[Site "https://www.chess.com"]

[Event "Titled Tuesday Blitz July 18 Late 2023"]
[White "Begmuratov, Alisher"]
[Black "Silva, Pedro Gil Ferreira Da"]
[WhiteFideId "14203367"]
[BlackFideId "1946102"]
[WhiteElo "2648"]
[BlackElo "2375"]
[Result "1-0"]
[Round "1"]
[TimeControl "180+2"]
[Date "2023.07.18"]
[WhiteClock "0:01:55"]
[BlackClock "0:00:55"]
[Board "96"]

1. c4 {[%clk 0:02:59]}  c5 {[%clk 0:02:59]} 2. g3 {[%clk 0:02:58]}  Nc6 {[%clk 0:02:59]} 3. Bg2 {[%clk 0:02:59]}  g6 {[%clk 0:03:00]} 4. Nf3 {[%clk 0:02:57]}  Bg7 {[%clk 0:03:00]} 5. O-O {[%clk 0:02:57]}  e5 {[%clk 0:03:00]} 6. Nc3 {[%clk 0:02:55]}  Nge7 {[%clk 0:03:01]} 7. a3 {[%clk 0:02:55]}  d6 {[%clk 0:03:01]} 8. Rb1 {[%clk 0:02:54]}  a5 {[%clk 0:03:01]} 9. d3 {[%clk 0:02:54]}  O-O {[%clk 0:03:01]} 10. Bg5 {[%clk 0:02:54]}  h6 {[%clk 0:03:01]} 11. Bxe7 {[%clk 0:02:54]}  Qxe7 {[%clk 0:03:02]} 12. Ne1 {[%clk 0:02:54]}  Be6 {[%clk 0:03:01]} 13. Nc2 {[%clk 0:02:54]}  f5 {[%clk 0:02:34]} 14. Nd5 {[%clk 0:02:53]}  Qf7 {[%clk 0:02:27]} 15. b4 {[%clk 0:02:53]}  axb4 {[%clk 0:02:27]} 16. axb4 {[%clk 0:02:54]}  Ra2 {[%clk 0:02:08]} 17. bxc5 {[%clk 0:02:53]}  dxc5 {[%clk 0:02:09]} 18. Rb6 {[%clk 0:02:29]}  Rd8 {[%clk 0:01:40]} 19. Qb1 {[%clk 0:02:28]}  Ra7 {[%clk 0:01:40]} 20. Nce3 {[%clk 0:02:19]}  Rd7 {[%clk 0:01:38]} 21. Qb5 {[%clk 0:02:06]}  Nd4 {[%clk 0:01:35]} 22. Qxc5 {[%clk 0:02:06]}  Nxe2+ {[%clk 0:01:36]} 23. Kh1 {[%clk 0:02:06]}  f4 {[%clk 0:01:34]} 24. Rxe6 {[%clk 0:02:00]}  Qxe6 {[%clk 0:01:22]} 25. Qxa7 {[%clk 0:01:59]}  fxe3 {[%clk 0:01:16]} 26. fxe3 {[%clk 0:01:58]}  h5 {[%clk 0:00:55]} 27. Qa2 {[%clk 0:01:55]} 1-0


[Site "https://www.chess.com"]

[Event "Titled Tuesday Blitz July 18 Late 2023"]
[White "Ballester Llagaria, Luis Eduardo"]
[Black "Romero Ruscalleda, Josep"]
[WhiteFideId "2297620"]
[BlackFideId "2231859"]
[WhiteElo "2617"]
[BlackElo "2370"]
[Result "1-0"]
[Round "1"]
[TimeControl "180+2"]
[Date "2023.07.18"]
[WhiteClock "0:02:02"]
[BlackClock "0:01:55"]
[Board "100"]

1. e4 {[%clk 0:03:00]}  g6 {[%clk 0:03:00]} 2. d4 {[%clk 0:03:00]}  Bg7 {[%clk 0:03:01]} 3. Nc3 {[%clk 0:03:00]}  d6 {[%clk 0:03:01]} 4. Be3 {[%clk 0:03:00]}  a6 {[%clk 0:03:01]} 5. f4 {[%clk 0:03:00]}  b5 {[%clk 0:03:01]} 6. Bd3 {[%clk 0:03:00]}  Bb7 {[%clk 0:03:00]} 7. Nf3 {[%clk 0:03:00]}  Nd7 {[%clk 0:03:00]} 8. Qe2 {[%clk 0:03:01]}  c5 {[%clk 0:03:00]} 9. dxc5 {[%clk 0:03:02]}  Nxc5 {[%clk 0:02:59]} 10. Bxc5 {[%clk 0:03:02]}  dxc5 {[%clk 0:02:59]} 11. e5 {[%clk 0:03:02]}  Nh6 {[%clk 0:02:51]} 12. O-O-O {[%clk 0:03:02]}  O-O {[%clk 0:02:48]} 13. Bxg6 {[%clk 0:02:59]}  Qa5 {[%clk 0:02:37]} 14. Be4 {[%clk 0:02:54]}  Bxe4 {[%clk 0:02:35]} 15. Qxe4 {[%clk 0:02:54]}  b4 {[%clk 0:02:35]} 16. Nd5 {[%clk 0:02:51]}  Qxa2 {[%clk 0:02:18]} 17. Ng5 {[%clk 0:02:36]}  f5 {[%clk 0:02:11]} 18. exf6 {[%clk 0:02:36]}  Rxf6 {[%clk 0:02:07]} 19. Nxf6+ {[%clk 0:02:06]}  Bxf6 {[%clk 0:02:01]} 20. Qxh7+ {[%clk 0:02:04]}  Kf8 {[%clk 0:02:02]} 21. Qxh6+ {[%clk 0:02:02]}  Ke8 {[%clk 0:01:56]} 22. Qg6+ {[%clk 0:02:02]}  Kf8 {[%clk 0:01:55]} 23. Nh7# {[%clk 0:02:02]} 1-0


[Site "https://www.chess.com"]

[Event "Titled Tuesday Blitz July 18 Late 2023"]
[White "Rodriguez Santiago, Jaime"]
[Black "Rostomyan, Mikayel"]
[WhiteFideId "3100898"]
[BlackFideId "13313754"]
[WhiteElo "2365"]
[BlackElo "2612"]
[Result "0-1"]
[Round "1"]
[TimeControl "180+2"]
[Date "2023.07.18"]
[WhiteClock "0:00:09"]
[BlackClock "0:00:07"]
[Board "103"]

1. c4 {[%clk 0:02:58]}  e5 {[%clk 0:02:59]} 2. Nc3 {[%clk 0:02:56]}  Nf6 {[%clk 0:02:58]} 3. g3 {[%clk 0:02:56]}  d5 {[%clk 0:02:57]} 4. cxd5 {[%clk 0:02:55]}  Nxd5 {[%clk 0:02:56]} 5. Bg2 {[%clk 0:02:55]}  Be6 {[%clk 0:02:56]} 6. Nf3 {[%clk 0:02:47]}  Nc6 {[%clk 0:02:54]} 7. Qa4 {[%clk 0:02:36]}  Nb6 {[%clk 0:02:49]} 8. Qd1 {[%clk 0:02:29]}  Be7 {[%clk 0:02:47]} 9. O-O {[%clk 0:02:28]}  O-O {[%clk 0:02:47]} 10. b3 {[%clk 0:02:26]}  a5 {[%clk 0:02:47]} 11. Bb2 {[%clk 0:02:24]}  a4 {[%clk 0:02:47]} 12. bxa4 {[%clk 0:02:21]}  f6 {[%clk 0:02:42]} 13. Qc2 {[%clk 0:01:46]}  Qd7 {[%clk 0:02:14]} 14. Rfc1 {[%clk 0:01:34]}  Nb4 {[%clk 0:02:10]} 15. Qd1 {[%clk 0:01:32]}  Nc4 {[%clk 0:01:44]} 16. Rcb1 {[%clk 0:01:16]}  Na6 {[%clk 0:01:36]} 17. d3 {[%clk 0:01:15]}  Nxb2 {[%clk 0:01:32]} 18. Rxb2 {[%clk 0:01:14]}  Nc5 {[%clk 0:01:32]} 19. d4 {[%clk 0:01:10]}  Nxa4 {[%clk 0:00:55]} 20. Nxa4 {[%clk 0:01:08]}  Rxa4 {[%clk 0:00:55]} 21. dxe5 {[%clk 0:01:00]}  Qxd1+ {[%clk 0:00:45]} 22. Rxd1 {[%clk 0:01:00]}  b6 {[%clk 0:00:45]} 23. Nd4 {[%clk 0:00:57]}  Rd8 {[%clk 0:00:40]} 24. Rbd2 {[%clk 0:00:50]}  Bb4 {[%clk 0:00:20]} 25. Rd3 {[%clk 0:00:46]}  Bc4 {[%clk 0:00:19]} 26. Re3 {[%clk 0:00:44]}  fxe5 {[%clk 0:00:16]} 27. Rxe5 {[%clk 0:00:44]}  c5 {[%clk 0:00:16]} 28. Rc1 {[%clk 0:00:30]}  Rxd4 {[%clk 0:00:14]} 29. Rxc4 {[%clk 0:00:29]}  Rd1+ {[%clk 0:00:08]} 30. Bf1 {[%clk 0:00:29]}  Rxa2 {[%clk 0:00:08]} 31. Kg2 {[%clk 0:00:29]}  Raa1 {[%clk 0:00:08]} 32. Rf4 {[%clk 0:00:28]}  h6 {[%clk 0:00:08]} 33. e4 {[%clk 0:00:15]}  Rxf1 {[%clk 0:00:08]} 34. Re7 {[%clk 0:00:16]}  Rg1+ {[%clk 0:00:07]} 35. Kh3 {[%clk 0:00:15]}  c4 {[%clk 0:00:08]} 36. Rff7 {[%clk 0:00:15]}  Bxe7 {[%clk 0:00:08]} 37. Rxe7 {[%clk 0:00:14]}  c3 {[%clk 0:00:08]} 38. Rc7 {[%clk 0:00:14]}  Rac1 {[%clk 0:00:08]} 39. e5 {[%clk 0:00:14]}  Rge1 {[%clk 0:00:08]} 40. f4 {[%clk 0:00:14]}  c2 {[%clk 0:00:08]} 41. Kg4 {[%clk 0:00:15]}  Re2 {[%clk 0:00:09]} 42. Kf5 {[%clk 0:00:15]}  Kh7 {[%clk 0:00:07]} 43. e6 {[%clk 0:00:15]}  Rd1 {[%clk 0:00:08]} 44. e7 {[%clk 0:00:09]}  c1=Q {[%clk 0:00:07]} 0-1


[Site "https://www.chess.com"]